[Event "Titled Tuesday Blitz April 18 Early 2023"]
[White "Bluebaum, Matthias"]
[Black "Daneshvar, Bardiya"]
[WhiteFideId "24651516"]
[BlackFideId "12576468"]
[WhiteElo "2638"]
[BlackElo "2468"]
[Result "0-1"]
[Round "10"]
[TimeControl "180+2"]
[Date "2023.04.18"]
[WhiteClock "0:00:08"]
[BlackClock "0:00:07"]

1. d4 {[%clk 0:03:00]}  e6 {[%clk 0:02:59]} 2. c4 {[%clk 0:03:01]}  b6 {[%clk 0:02:59]} 3. e4 {[%clk 0:03:01]}  Bb7 {[%clk 0:02:58]} 4. Bd3 {[%clk 0:03:02]}  Bb4+ {[%clk 0:02:55]} 5. Kf1 {[%clk 0:03:01]}  Be7 {[%clk 0:02:56]} 6. Nc3 {[%clk 0:02:58]}  d6 {[%clk 0:02:55]} 7. Nf3 {[%clk 0:02:59]}  Nd7 {[%clk 0:02:55]} 8. g3 {[%clk 0:02:58]}  Bf6 {[%clk 0:02:54]} 9. Kg2 {[%clk 0:02:58]}  Ne7 {[%clk 0:02:54]} 10. h4 {[%clk 0:02:55]}  O-O {[%clk 0:02:52]} 11. Bg5 {[%clk 0:02:52]}  c5 {[%clk 0:02:52]} 12. d5 {[%clk 0:02:52]}  Bxc3 {[%clk 0:02:45]} 13. bxc3 {[%clk 0:02:51]}  e5 {[%clk 0:02:43]} 14. Qd2 {[%clk 0:02:29]}  f6 {[%clk 0:02:36]} 15. Be3 {[%clk 0:02:27]}  h6 {[%clk 0:02:29]} 16. h5 {[%clk 0:02:08]}  f5 {[%clk 0:02:23]} 17. exf5 {[%clk 0:02:08]}  Nxf5 {[%clk 0:02:20]} 18. Nh4 {[%clk 0:02:09]}  Nxh4+ {[%clk 0:02:13]} 19. Rxh4 {[%clk 0:02:07]}  Nf6 {[%clk 0:02:10]} 20. Rah1 {[%clk 0:01:37]}  b5 {[%clk 0:02:06]} 21. f3 {[%clk 0:01:24]}  bxc4 {[%clk 0:02:00]} 22. Bxc4 {[%clk 0:01:25]}  Qe7 {[%clk 0:01:56]} 23. g4 {[%clk 0:01:25]}  Nh7 {[%clk 0:01:53]} 24. g5 {[%clk 0:01:23]}  hxg5 {[%clk 0:01:51]} 25. Rg4 {[%clk 0:01:23]}  Qf6 {[%clk 0:01:23]} 26. Rf1 {[%clk 0:01:17]}  Bc8 {[%clk 0:01:16]} 27. Bxg5 {[%clk 0:01:14]}  Nxg5 {[%clk 0:01:09]} 28. Rxg5 {[%clk 0:01:15]}  Bf5 {[%clk 0:00:59]} 29. Kh2 {[%clk 0:01:09]}  Rab8 {[%clk 0:00:56]} 30. Rfg1 {[%clk 0:01:08]}  Rb7 {[%clk 0:00:55]} 31. Bb3 {[%clk 0:00:56]}  Bh7 {[%clk 0:00:52]} 32. R1g3 {[%clk 0:00:51]}  Kh8 {[%clk 0:00:49]} 33. c4 {[%clk 0:00:52]}  Rbf7 {[%clk 0:00:40]} 34. Rg6 {[%clk 0:00:34]}  Qd8 {[%clk 0:00:15]} 35. Qg2 {[%clk 0:00:21]}  Bxg6 {[%clk 0:00:10]} 36. hxg6 {[%clk 0:00:21]}  Rf4 {[%clk 0:00:11]} 37. Rh3+ {[%clk 0:00:06]}  Rh4 {[%clk 0:00:11]} 38. Qg3 {[%clk 0:00:07]}  Rf4 {[%clk 0:00:09]} 39. Kg2 {[%clk 0:00:07]}  Qf6 {[%clk 0:00:07]} 40. Bc2 {[%clk 0:00:06]}  Kg8 {[%clk 0:00:07]} 41. Be4 {[%clk 0:00:06]}  Kf8 {[%clk 0:00:07]} 42. Rxh4 {[%clk 0:00:06]}  Qxh4 {[%clk 0:00:06]} 43. Qxh4 {[%clk 0:00:04]}  Rxh4 {[%clk 0:00:07]} 44. Kg3 {[%clk 0:00:03]}  Rf4 {[%clk 0:00:07]} 45. a4 {[%clk 0:00:03]}  Ke7 {[%clk 0:00:08]} 46. a5 {[%clk 0:00:03]}  Kf6 {[%clk 0:00:08]} 47. a6 {[%clk 0:00:04]}  Kg5 {[%clk 0:00:09]} 48. Kg2 {[%clk 0:00:03]}  Kh4 {[%clk 0:00:09]} 49. Kf2 {[%clk 0:00:04]}  Kh3 {[%clk 0:00:09]} 50. Bc2 {[%clk 0:00:03]}  Rxc4 {[%clk 0:00:08]} 51. Bd3 {[%clk 0:00:04]}  Rf4 {[%clk 0:00:08]} 52. Ke3 {[%clk 0:00:03]}  Kh4 {[%clk 0:00:09]} 53. Bb5 {[%clk 0:00:03]}  Kg3 {[%clk 0:00:09]} 54. Be2 {[%clk 0:00:03]}  Rf6 {[%clk 0:00:09]} 55. Bd3 {[%clk 0:00:03]}  Rxf3+ {[%clk 0:00:09]} 56. Ke4 {[%clk 0:00:04]}  Rf4+ {[%clk 0:00:09]} 57. Ke3 {[%clk 0:00:04]}  Rd4 {[%clk 0:00:10]} 58. Be2 {[%clk 0:00:04]}  Rxd5 {[%clk 0:00:09]} 59. Ke4 {[%clk 0:00:05]}  Rd4+ {[%clk 0:00:10]} 60. Kf5 {[%clk 0:00:05]}  Rf4+ {[%clk 0:00:09]} 61. Ke6 {[%clk 0:00:06]}  Rf6+ {[%clk 0:00:10]} 62. Kd5 {[%clk 0:00:06]}  Rxg6 {[%clk 0:00:10]} 63. Bd3 {[%clk 0:00:07]}  Rg4 {[%clk 0:00:10]} 64. Kc6 {[%clk 0:00:07]}  c4 {[%clk 0:00:10]} 65. Bf5 {[%clk 0:00:07]}  c3 {[%clk 0:00:10]} 66. Kb7 {[%clk 0:00:06]}  Rb4+ {[%clk 0:00:08]} 67. Kxa7 {[%clk 0:00:07]}  e4 {[%clk 0:00:09]} 68. Ka8 {[%clk 0:00:06]}  c2 {[%clk 0:00:09]} 69. Bxe4 {[%clk 0:00:06]}  c1=Q {[%clk 0:00:10]} 70. Bb7 {[%clk 0:00:06]}  Qc7 {[%clk 0:00:09]} 71. Ka7 {[%clk 0:00:06]}  Rh4 {[%clk 0:00:07]} 72. Ka8 {[%clk 0:00:06]}  d5 {[%clk 0:00:06]} 73. Bc8 {[%clk 0:00:07]}  Qxc8+ {[%clk 0:00:06]} 74. Ka7 {[%clk 0:00:07]}  Qc7+ {[%clk 0:00:07]} 75. Ka8 {[%clk 0:00:08]}  Rh8# {[%clk 0:00:07]} 0-1


[Site "https://www.chess.com"]

[Event "Titled Tuesday Blitz April 18 Early 2023"]
[White "Demchenko, Anton"]
[Black "Sarana, Alexey"]
[WhiteFideId "4160258"]
[BlackFideId "24133795"]
[WhiteElo "2545"]
[BlackElo "2714"]
[Result "0-1"]
[Round "10"]
[TimeControl "180+2"]
[Date "2023.04.18"]
[WhiteClock "0:00:02"]
[BlackClock "0:00:12"]

1. e4 {[%clk 0:03:00]}  c5 {[%clk 0:03:00]} 2. Nc3 {[%clk 0:03:01]}  d6 {[%clk 0:03:01]} 3. Bb5+ {[%clk 0:03:01]}  Bd7 {[%clk 0:03:00]} 4. a4 {[%clk 0:03:02]}  g6 {[%clk 0:02:59]} 5. f4 {[%clk 0:03:02]}  Bg7 {[%clk 0:03:00]} 6. Nf3 {[%clk 0:03:03]}  e6 {[%clk 0:02:59]} 7. O-O {[%clk 0:03:02]}  Ne7 {[%clk 0:03:00]} 8. d3 {[%clk 0:02:44]}  O-O {[%clk 0:02:59]} 9. Be3 {[%clk 0:02:43]}  Nbc6 {[%clk 0:02:59]} 10. Bf2 {[%clk 0:02:36]}  Rc8 {[%clk 0:02:51]} 11. Bc4 {[%clk 0:02:35]}  Nd4 {[%clk 0:02:45]} 12. Nxd4 {[%clk 0:02:14]}  cxd4 {[%clk 0:02:43]} 13. Nb5 {[%clk 0:02:08]}  d5 {[%clk 0:02:38]} 14. Bb3 {[%clk 0:02:02]}  Bxb5 {[%clk 0:02:19]} 15. axb5 {[%clk 0:02:02]}  Qb6 {[%clk 0:02:20]} 16. f5 {[%clk 0:01:37]}  gxf5 {[%clk 0:01:06]} 17. exd5 {[%clk 0:01:38]}  Nxd5 {[%clk 0:01:07]} 18. Bxd5 {[%clk 0:01:38]}  exd5 {[%clk 0:01:08]} 19. Bg3 {[%clk 0:01:33]}  Qxb5 {[%clk 0:01:01]} 20. b3 {[%clk 0:01:33]}  Qc6 {[%clk 0:00:48]} 21. Rxa7 {[%clk 0:01:30]}  Bh6 {[%clk 0:00:14]} 22. Qf3 {[%clk 0:01:21]}  Be3+ {[%clk 0:00:14]} 23. Kh1 {[%clk 0:01:21]}  Qe6 {[%clk 0:00:03]} 24. Rxb7 {[%clk 0:01:02]}  Rxc2 {[%clk 0:00:03]} 25. h3 {[%clk 0:01:02]}  h6 {[%clk 0:00:03]} 26. b4 {[%clk 0:00:50]}  Rd2 {[%clk 0:00:03]} 27. Rd1 {[%clk 0:00:47]}  Rxd1+ {[%clk 0:00:04]} 28. Qxd1 {[%clk 0:00:48]}  f4 {[%clk 0:00:04]} 29. Be1 {[%clk 0:00:42]}  Rc8 {[%clk 0:00:05]} 30. Bd2 {[%clk 0:00:11]}  f3 {[%clk 0:00:05]} 31. Bxe3 {[%clk 0:00:08]}  dxe3 {[%clk 0:00:06]} 32. Qxf3 {[%clk 0:00:06]}  e2 {[%clk 0:00:06]} 33. Qg3+ {[%clk 0:00:06]}  Kh8 {[%clk 0:00:06]} 34. Qe1 {[%clk 0:00:03]}  Rc1 {[%clk 0:00:07]} 35. Qxc1 {[%clk 0:00:02]}  e1=Q+ {[%clk 0:00:07]} 36. Qxe1 {[%clk 0:00:03]}  Qxe1+ {[%clk 0:00:08]} 37. Kh2 {[%clk 0:00:04]}  Qe5+ {[%clk 0:00:08]} 38. Kh1 {[%clk 0:00:04]}  Kg7 {[%clk 0:00:09]} 39. Ra7 {[%clk 0:00:03]}  Qe1+ {[%clk 0:00:08]} 40. Kh2 {[%clk 0:00:03]}  Qxb4 {[%clk 0:00:09]} 41. Ra2 {[%clk 0:00:02]}  Qf4+ {[%clk 0:00:10]} 42. Kg1 {[%clk 0:00:01]}  Qe3+ {[%clk 0:00:10]} 43. Kh2 {[%clk 0:00:01]}  Qxd3 {[%clk 0:00:10]} 44. Rf2 {[%clk 0:00:01]}  d4 {[%clk 0:00:11]} 45. Rf3 {[%clk 0:00:02]}  Qc4 {[%clk 0:00:12]} 0-1


[Site "https://www.chess.com"]

[Event "Titled Tuesday Blitz April 18 Early 2023"]
[White "Yeletsky, Ivan"]
[Black "Puranik, Abhimanyu"]
[WhiteFideId "24180327"]
[BlackFideId "5061245"]
[WhiteElo "2422"]
[BlackElo "2477"]
[Result "0-1"]
[Round "10"]
[TimeControl "180+2"]
[Date "2023.04.18"]
[WhiteClock "0:00:17"]
[BlackClock "0:01:51"]

1. e4 {[%clk 0:03:00]}  e6 {[%clk 0:03:00]} 2. d4 {[%clk 0:03:00]}  d5 {[%clk 0:03:00]} 3. Nc3 {[%clk 0:03:01]}  Bb4 {[%clk 0:03:01]} 4. e5 {[%clk 0:03:01]}  c5 {[%clk 0:03:01]} 5. a3 {[%clk 0:03:02]}  Bxc3+ {[%clk 0:03:01]} 6. bxc3 {[%clk 0:03:03]}  Ne7 {[%clk 0:03:01]} 7. h4 {[%clk 0:03:02]}  Qa5 {[%clk 0:03:01]} 8. Bd2 {[%clk 0:02:54]}  Nbc6 {[%clk 0:03:01]} 9. a4 {[%clk 0:02:53]}  Bd7 {[%clk 0:03:00]} 10. h5 {[%clk 0:02:46]}  h6 {[%clk 0:02:59]} 11. Nf3 {[%clk 0:02:42]}  O-O-O {[%clk 0:02:57]} 12. Rb1 {[%clk 0:02:31]}  c4 {[%clk 0:02:56]} 13. Rb5 {[%clk 0:02:22]}  Qxa4 {[%clk 0:02:52]} 14. Rb1 {[%clk 0:02:22]}  Qa5 {[%clk 0:02:49]} 15. g3 {[%clk 0:02:18]}  f6 {[%clk 0:02:49]} 16. Ra1 {[%clk 0:02:16]}  Qb6 {[%clk 0:02:49]} 17. Rb1 {[%clk 0:02:07]}  Qc7 {[%clk 0:02:49]} 18. Bf4 {[%clk 0:02:07]}  Qa5 {[%clk 0:02:48]} 19. Kd2 {[%clk 0:01:53]}  Rdf8 {[%clk 0:02:25]} 20. Ra1 {[%clk 0:01:34]}  Qd8 {[%clk 0:02:21]} 21. Be2 {[%clk 0:01:27]}  fxe5 {[%clk 0:02:20]} 22. Nxe5 {[%clk 0:01:27]}  Nxe5 {[%clk 0:02:21]} 23. Bxe5 {[%clk 0:01:27]}  Nc6 {[%clk 0:02:17]} 24. f4 {[%clk 0:01:23]}  Nxe5 {[%clk 0:02:14]} 25. dxe5 {[%clk 0:01:23]}  d4 {[%clk 0:02:12]} 26. cxd4 {[%clk 0:01:03]}  Bc6 {[%clk 0:02:11]} 27. Kc3 {[%clk 0:01:03]}  Bxh1 {[%clk 0:02:04]} 28. Qxh1 {[%clk 0:01:04]}  Qb6 {[%clk 0:02:03]} 29. Rb1 {[%clk 0:00:48]}  Qa5+ {[%clk 0:02:01]} 30. Kxc4 {[%clk 0:00:48]}  Rf7 {[%clk 0:02:01]} 31. Kd3 {[%clk 0:00:34]}  Rc7 {[%clk 0:01:57]} 32. Qe1 {[%clk 0:00:23]}  Qa4 {[%clk 0:01:52]} 33. Bg4 {[%clk 0:00:17]}  Qxc2+ {[%clk 0:01:51]} 0-1


[Site "https://www.chess.com"]

[Event "Titled Tuesday Blitz April 18 Early 2023"]
[White "Ivanchuk, Vasyl"]
[Black "Fier, Alexandr"]
[WhiteFideId "14100010"]
[BlackFideId "2107139"]
[WhiteElo "2710"]
[BlackElo "2610"]
[Result "1-0"]
[Round "10"]
[TimeControl "180+2"]
[Date "2023.04.18"]
[WhiteClock "0:00:16"]
[BlackClock "0:00:27"]

1. d4 {[%clk 0:03:00]}  Nf6 {[%clk 0:02:59]} 2. c4 {[%clk 0:03:01]}  c5 {[%clk 0:02:58]} 3. d5 {[%clk 0:03:00]}  e6 {[%clk 0:02:58]} 4. Nc3 {[%clk 0:02:59]}  exd5 {[%clk 0:02:59]} 5. cxd5 {[%clk 0:03:00]}  d6 {[%clk 0:03:00]} 6. e4 {[%clk 0:02:59]}  g6 {[%clk 0:03:00]} 7. f4 {[%clk 0:02:59]}  Bg7 {[%clk 0:02:56]} 8. Bb5+ {[%clk 0:02:59]}  Nfd7 {[%clk 0:02:57]} 9. Bd3 {[%clk 0:02:59]}  Qh4+ {[%clk 0:02:56]} 10. g3 {[%clk 0:02:58]}  Qd8 {[%clk 0:02:54]} 11. Nf3 {[%clk 0:02:58]}  O-O {[%clk 0:02:55]} 12. O-O {[%clk 0:02:58]}  Nf6 {[%clk 0:02:55]} 13. Kg2 {[%clk 0:02:51]}  Bg4 {[%clk 0:02:55]} 14. h3 {[%clk 0:02:51]}  Bxf3+ {[%clk 0:02:55]} 15. Qxf3 {[%clk 0:02:51]}  Nbd7 {[%clk 0:02:56]} 16. Bd2 {[%clk 0:02:46]}  Rc8 {[%clk 0:02:56]} 17. b3 {[%clk 0:02:34]}  a6 {[%clk 0:02:51]} 18. a4 {[%clk 0:02:34]}  Re8 {[%clk 0:02:24]} 19. Rab1 {[%clk 0:02:27]}  h5 {[%clk 0:02:03]} 20. Rfe1 {[%clk 0:02:12]}  h4 {[%clk 0:01:56]} 21. g4 {[%clk 0:02:12]}  Nh7 {[%clk 0:01:56]} 22. g5 {[%clk 0:02:00]}  Qa5 {[%clk 0:01:47]} 23. Rec1 {[%clk 0:01:53]}  Qc7 {[%clk 0:01:41]} 24. Be1 {[%clk 0:01:28]}  Qa5 {[%clk 0:01:34]} 25. Nb5 {[%clk 0:01:13]}  Qb6 {[%clk 0:01:21]} 26. a5 {[%clk 0:01:13]}  Qd8 {[%clk 0:01:22]} 27. Nxd6 {[%clk 0:01:13]}  Nxg5 {[%clk 0:01:23]} 28. Qe2 {[%clk 0:01:01]}  Nh7 {[%clk 0:00:35]} 29. Nxe8 {[%clk 0:00:56]}  Qxe8 {[%clk 0:00:36]} 30. e5 {[%clk 0:00:56]}  g5 {[%clk 0:00:32]} 31. Qe4 {[%clk 0:00:53]}  Ndf8 {[%clk 0:00:32]} 32. Bd2 {[%clk 0:00:43]}  Ng6 {[%clk 0:00:32]} 33. e6 {[%clk 0:00:34]}  Nf6 {[%clk 0:00:25]} 34. exf7+ {[%clk 0:00:28]}  Qxf7 {[%clk 0:00:26]} 35. Qxg6 {[%clk 0:00:28]}  Qxd5+ {[%clk 0:00:26]} 36. Kh2 {[%clk 0:00:21]}  Rd8 {[%clk 0:00:26]} 37. Bc4 {[%clk 0:00:20]}  Qxc4 {[%clk 0:00:25]} 38. Rxc4 {[%clk 0:00:20]}  Rxd2+ {[%clk 0:00:26]} 39. Kg1 {[%clk 0:00:19]}  Nd5 {[%clk 0:00:27]} 40. Qxg5 {[%clk 0:00:16]} 1-0


[Site "https://www.chess.com"]

[Event "Titled Tuesday Blitz April 18 Early 2023"]
[White "Andreikin, Dmitry"]
[Black "Rustemov, Alexander"]
[WhiteFideId "4158814"]
[BlackFideId "4119002"]
[WhiteElo "2736"]
[BlackElo "2874"]
[Result "1/2-1/2"]
[Round "10"]
[TimeControl "180+2"]
[Date "2023.04.18"]
[WhiteClock "0:00:07"]
[BlackClock "0:00:11"]

1. c4 {[%clk 0:03:00]}  c5 {[%clk 0:02:59]} 2. Nf3 {[%clk 0:02:59]}  g6 {[%clk 0:03:00]} 3. d4 {[%clk 0:02:57]}  cxd4 {[%clk 0:03:00]} 4. Nxd4 {[%clk 0:02:57]}  Bg7 {[%clk 0:03:01]} 5. e4 {[%clk 0:02:57]}  Nc6 {[%clk 0:03:01]} 6. Be3 {[%clk 0:02:57]}  Bxd4 {[%clk 0:03:02]} 7. Bxd4 {[%clk 0:02:57]}  Nxd4 {[%clk 0:03:02]} 8. Qxd4 {[%clk 0:02:56]}  Nf6 {[%clk 0:02:59]} 9. e5 {[%clk 0:02:45]}  Nh5 {[%clk 0:02:59]} 10. Be2 {[%clk 0:02:45]}  Ng7 {[%clk 0:02:58]} 11. Nc3 {[%clk 0:02:46]}  O-O {[%clk 0:02:57]} 12. O-O {[%clk 0:02:43]}  Nf5 {[%clk 0:02:53]} 13. Qf4 {[%clk 0:02:35]}  d6 {[%clk 0:02:53]} 14. Rfd1 {[%clk 0:02:33]}  Be6 {[%clk 0:02:28]} 15. exd6 {[%clk 0:02:31]}  exd6 {[%clk 0:02:29]} 16. Ne4 {[%clk 0:02:26]}  Rc8 {[%clk 0:02:18]} 17. g4 {[%clk 0:02:20]}  Qh4 {[%clk 0:02:10]} 18. Qg5 {[%clk 0:01:57]}  Qxg5 {[%clk 0:02:04]} 19. Nxg5 {[%clk 0:01:58]}  Bxc4 {[%clk 0:02:02]} 20. gxf5 {[%clk 0:00:58]}  Bxe2 {[%clk 0:02:01]} 21. Rxd6 {[%clk 0:00:59]}  Rc5 {[%clk 0:01:58]} 22. Ne4 {[%clk 0:00:53]}  Rxf5 {[%clk 0:01:57]} 23. Ng3 {[%clk 0:00:43]}  Re5 {[%clk 0:01:54]} 24. Re1 {[%clk 0:00:40]}  Rfe8 {[%clk 0:01:54]} 25. f4 {[%clk 0:00:41]}  R5e7 {[%clk 0:01:52]} 26. f5 {[%clk 0:00:41]}  Bb5 {[%clk 0:01:21]} 27. Rxe7 {[%clk 0:00:39]}  Rxe7 {[%clk 0:01:22]} 28. f6 {[%clk 0:00:40]}  Rd7 {[%clk 0:01:22]} 29. Ne4 {[%clk 0:00:37]}  Rxd6 {[%clk 0:01:21]} 30. Nxd6 {[%clk 0:00:38]}  Bc6 {[%clk 0:01:19]} 31. h4 {[%clk 0:00:37]}  h6 {[%clk 0:01:19]} 32. Kf2 {[%clk 0:00:35]}  g5 {[%clk 0:01:04]} 33. h5 {[%clk 0:00:30]}  a5 {[%clk 0:00:52]} 34. Kg3 {[%clk 0:00:25]}  Bd5 {[%clk 0:00:50]} 35. a3 {[%clk 0:00:24]}  b6 {[%clk 0:00:47]} 36. b4 {[%clk 0:00:24]}  Be6 {[%clk 0:00:39]} 37. b5 {[%clk 0:00:22]}  Bd7 {[%clk 0:00:37]} 38. Kf3 {[%clk 0:00:20]}  Be6 {[%clk 0:00:33]} 39. Ke4 {[%clk 0:00:14]}  Bb3 {[%clk 0:00:32]} 40. Kd4 {[%clk 0:00:06]}  g4 {[%clk 0:00:29]} 41. Nf5 {[%clk 0:00:06]}  Kh7 {[%clk 0:00:28]} 42. Ke3 {[%clk 0:00:06]}  Ba4 {[%clk 0:00:18]} 43. Nd6 {[%clk 0:00:06]}  g3 {[%clk 0:00:16]} 44. Nxf7 {[%clk 0:00:06]}  Bxb5 {[%clk 0:00:14]} 45. Ne5 {[%clk 0:00:03]}  g2 {[%clk 0:00:14]} 46. Kf2 {[%clk 0:00:03]}  Kg8 {[%clk 0:00:14]} 47. Kxg2 {[%clk 0:00:03]}  Be8 {[%clk 0:00:12]} 48. Nc4 {[%clk 0:00:03]}  Bxh5 {[%clk 0:00:10]} 49. Nxb6 {[%clk 0:00:04]}  Kf7 {[%clk 0:00:10]} 50. Nc4 {[%clk 0:00:04]}  Kxf6 {[%clk 0:00:11]} 51. Nxa5 {[%clk 0:00:04]}  Ke5 {[%clk 0:00:11]} 52. Kg3 {[%clk 0:00:04]}  Kd6 {[%clk 0:00:11]} 53. Nc4+ {[%clk 0:00:04]}  Kc5 {[%clk 0:00:11]} 54. Ne5 {[%clk 0:00:04]}  Kb5 {[%clk 0:00:10]} 55. Ng4 {[%clk 0:00:04]}  Bxg4 {[%clk 0:00:10]} 56. Kxg4 {[%clk 0:00:05]}  Ka4 {[%clk 0:00:11]} 57. Kh5 {[%clk 0:00:06]}  Kxa3 {[%clk 0:00:11]} 58. Kxh6 {[%clk 0:00:07]} 1/2-1/2


[Site "https://www.chess.com"]

[Event "Titled Tuesday Blitz April 18 Early 2023"]
[White "Movahed, Sina"]
[Black "Sadhwani, Raunak"]
[WhiteFideId "42520835"]
[BlackFideId "35093487"]
[WhiteElo "2225"]
[BlackElo "2631"]
[Result "0-1"]
[Round "10"]
[TimeControl "180+2"]
[Date "2023.04.18"]
[WhiteClock "0:00:01"]
[BlackClock "0:00:08"]

1. e4 {[%clk 0:03:00]}  g6 {[%clk 0:02:59]} 2. d4 {[%clk 0:03:00]}  Bg7 {[%clk 0:03:00]} 3. Nf3 {[%clk 0:02:59]}  d6 {[%clk 0:03:00]} 4. h3 {[%clk 0:02:57]}  a6 {[%clk 0:02:59]} 5. c4 {[%clk 0:02:56]}  Nf6 {[%clk 0:02:52]} 6. Nc3 {[%clk 0:02:55]}  O-O {[%clk 0:02:52]} 7. Be2 {[%clk 0:02:52]}  Nbd7 {[%clk 0:02:41]} 8. e5 {[%clk 0:02:30]}  Ne8 {[%clk 0:02:22]} 9. O-O {[%clk 0:02:24]}  c5 {[%clk 0:02:19]} 10. exd6 {[%clk 0:02:20]}  Nxd6 {[%clk 0:02:19]} 11. d5 {[%clk 0:02:18]}  Ne5 {[%clk 0:02:10]} 12. Nxe5 {[%clk 0:02:10]}  Bxe5 {[%clk 0:02:10]} 13. Be3 {[%clk 0:02:08]}  Qc7 {[%clk 0:02:08]} 14. Qd2 {[%clk 0:02:01]}  Bd7 {[%clk 0:02:04]} 15. a4 {[%clk 0:01:51]}  b6 {[%clk 0:01:56]} 16. Ra3 {[%clk 0:01:45]}  Rab8 {[%clk 0:01:47]} 17. Bf4 {[%clk 0:01:02]}  Nf5 {[%clk 0:01:38]} 18. Bxe5 {[%clk 0:00:41]}  Qxe5 {[%clk 0:01:39]} 19. Bg4 {[%clk 0:00:41]}  Qd4 {[%clk 0:01:38]} 20. Qxd4 {[%clk 0:00:37]}  cxd4 {[%clk 0:01:38]} 21. Ne2 {[%clk 0:00:38]}  Rfc8 {[%clk 0:01:30]} 22. Rc1 {[%clk 0:00:37]}  e5 {[%clk 0:00:33]} 23. dxe6 {[%clk 0:00:34]}  Bxe6 {[%clk 0:00:33]} 24. Bxf5 {[%clk 0:00:34]}  Bxf5 {[%clk 0:00:34]} 25. Nxd4 {[%clk 0:00:34]}  Bd7 {[%clk 0:00:35]} 26. b3 {[%clk 0:00:25]}  Rd8 {[%clk 0:00:35]} 27. Nf3 {[%clk 0:00:21]}  Be6 {[%clk 0:00:30]} 28. Ra2 {[%clk 0:00:18]}  Rd3 {[%clk 0:00:24]} 29. Rb2 {[%clk 0:00:14]}  f6 {[%clk 0:00:24]} 30. b4 {[%clk 0:00:13]}  Ra3 {[%clk 0:00:22]} 31. Nd4 {[%clk 0:00:08]}  Bf7 {[%clk 0:00:22]} 32. c5 {[%clk 0:00:09]}  Rxa4 {[%clk 0:00:21]} 33. c6 {[%clk 0:00:09]}  Rc8 {[%clk 0:00:16]} 34. c7 {[%clk 0:00:09]}  Ra3 {[%clk 0:00:10]} 35. Rc6 {[%clk 0:00:09]}  Rd3 {[%clk 0:00:10]} 36. Rd6 {[%clk 0:00:05]}  Rd1+ {[%clk 0:00:03]} 37. Kh2 {[%clk 0:00:05]}  Rf8 {[%clk 0:00:01]} 38. Rd8 {[%clk 0:00:05]}  Rc1 {[%clk 0:00:02]} 39. Rc2 {[%clk 0:00:04]}  Rxc2 {[%clk 0:00:02]} 40. Nxc2 {[%clk 0:00:05]}  Be6 {[%clk 0:00:03]} 41. Nd4 {[%clk 0:00:05]}  Bc8 {[%clk 0:00:03]} 42. Nc6 {[%clk 0:00:06]}  Kf7 {[%clk 0:00:03]} 43. Na7 {[%clk 0:00:06]}  Be6 {[%clk 0:00:02]} 44. Rxf8+ {[%clk 0:00:05]}  Kxf8 {[%clk 0:00:03]} 45. c8=Q+ {[%clk 0:00:05]}  Bxc8 {[%clk 0:00:03]} 46. Nxc8 {[%clk 0:00:06]}  a5 {[%clk 0:00:04]} 47. b5 {[%clk 0:00:06]}  a4 {[%clk 0:00:04]} 48. Nxb6 {[%clk 0:00:07]}  a3 {[%clk 0:00:05]} 49. Nd7+ {[%clk 0:00:04]}  Ke7 {[%clk 0:00:05]} 50. Nc5 {[%clk 0:00:05]}  Kd6 {[%clk 0:00:06]} 51. b6 {[%clk 0:00:03]}  a2 {[%clk 0:00:03]} 52. b7 {[%clk 0:00:03]}  Kc7 {[%clk 0:00:04]} 53. Nb3 {[%clk 0:00:03]}  Kxb7 {[%clk 0:00:05]} 54. Kg3 {[%clk 0:00:04]}  Kb6 {[%clk 0:00:05]} 55. Kf3 {[%clk 0:00:04]}  Kb5 {[%clk 0:00:06]} 56. Ke3 {[%clk 0:00:04]}  Kb4 {[%clk 0:00:07]} 57. Na1 {[%clk 0:00:02]}  Kc3 {[%clk 0:00:07]} 58. Ke2 {[%clk 0:00:02]}  Kb2 {[%clk 0:00:08]} 59. Kd2 {[%clk 0:00:03]}  Kxa1 {[%clk 0:00:04]} 60. Kc2 {[%clk 0:00:04]}  f5 {[%clk 0:00:02]} 61. f4 {[%clk 0:00:04]}  h6 {[%clk 0:00:02]} 62. h4 {[%clk 0:00:03]}  h5 {[%clk 0:00:01]} 63. Kc1 {[%clk 0:00:03]}  g5 {[%clk 0:00:02]} 64. fxg5 {[%clk 0:00:04]}  f4 {[%clk 0:00:03]} 65. g6 {[%clk 0:00:05]}  f3 {[%clk 0:00:04]} 66. g7 {[%clk 0:00:02]}  f2 {[%clk 0:00:04]} 67. g8=Q {[%clk 0:00:02]}  f1=Q+ {[%clk 0:00:05]} 68. Kc2 {[%clk 0:00:03]}  Qf2+ {[%clk 0:00:05]} 69. Kc1 {[%clk 0:00:03]}  Qb2+ {[%clk 0:00:06]} 70. Kd1 {[%clk 0:00:04]}  Qb1+ {[%clk 0:00:06]} 71. Kd2 {[%clk 0:00:05]}  Qb2+ {[%clk 0:00:06]} 72. Kd1 {[%clk 0:00:05]}  Qc3 {[%clk 0:00:07]} 73. Qb8 {[%clk 0:00:02]}  Qd3+ {[%clk 0:00:07]} 74. Kc1 {[%clk 0:00:01]}  Qb1+ {[%clk 0:00:08]} 0-1


[Site "https://www.chess.com"]